bitfinex/quotes_BTCUSD_20220212
["timestamp","ask_amount","ask_price","bid_price","bid_amount"]
[1644629102177,0.28468813,42449.0,42441.0,0.00048924]
[1644629102379,0.00048917,42447.0,42441.0,0.00048924]
[1644629103224,0.08826867,42448.0,42440.0,0.0001]
[1644629103424,0.00048917,42447.0,42441.0,0.00048924]
[1644629104524,0.13556867,42448.0,42440.0,0.0001]
[1644629104825,0.00048917,42447.0,42441.0,0.00048924]
[1644629105625,0.13556867,42448.0,42440.0,0.0001]
[1644629105826,0.00048917,42447.0,42441.0,0.00048924]
[1644629106874,0.00048917,42447.0,42440.0,0.0001]
[1644629106875,0.1211,42450.0,42440.0,0.0001]
[1644629107175,0.00048917,42447.0,42441.0,0.00048924]
[1644629107375,0.00048917,42447.0,42443.0,0.08277981]
[1644629107576,0.00048917,42447.0,42444.0,0.059018]
[1644629107775,0.00048917,42447.0,42446.0,0.21071127]
[1644629107976,0.5974,42455.0,42446.0,0.21081127]
[1644629108177,0.5974,42455.0,42447.0,0.0001]
[1644629108377,0.00048917,42449.0,42447.0,0.0001]
[1644629108777,0.00048917,42449.0,42447.0,0.117939]
[1644629108981,0.00048917,42449.0,42448.0,0.0001]
[1644629109177,0.1919917,42457.0,42448.0,0.0001]
[1644629109578,0.00048916,42451.0,42448.0,0.0001]
[1644629110529,0.08173262,42457.0,42448.0,0.0001]
[1644629110826,0.113,42461.0,42448.0,0.0001]
[1644629110827,0.00048915,42452.0,42448.0,0.0001]
[1644629111634,0.21391994,42459.0,42448.0,0.0001]
[1644629111829,0.00048915,42452.0,42451.0,0.058922]
[1644629112026,0.00048915,42452.0,42451.0,0.059022]
[1644629112929,0.113,42461.0,42451.0,0.059022]
[1644629113127,0.00032564,42454.0,42452.0,0.0001]
[1644629113328,0.00032564,42454.0,42452.0,0.117929]
[1644629113528,0.00032564,42454.0,42453.0,0.0001]
[1644629113973,0.24938389,42460.0,42453.0,0.0001]
[1644629114373,0.00032563,42456.0,42453.0,0.0001]
[1644629114971,0.00032563,42456.0,42452.0,0.0001]
[1644629115372,0.24938389,42460.0,42452.0,0.0001]
[1644629115572,0.00032563,42456.0,42452.0,0.0001]
[1644629115771,0.07091564,42453.0,42452.0,0.0001]
[1644629117272,0.00052451,42455.0,42452.0,0.0001]
[1644629117728,0.24938389,42460.0,42452.0,0.0001]
[1644629117928,0.0005245,42456.0,42452.0,0.0001]
[1644629118930,0.07814226,42454.0,42452.0,0.0001]
[1644629120232,0.00052451,42455.0,42452.0,0.0001]
[1644629121373,0.24938389,42460.0,42452.0,0.0001]
[1644629121578,0.0005245,42456.0,42452.0,0.0001]
[1644629122183,0.0005245,42456.0,42453.0,0.33666504]
[1644629122379,0.388,42471.0,42454.0,0.0001]
[1644629122579,0.1151,42470.0,42460.0,0.117796]
[1644629122779,0.1151,42470.0,42461.0,0.20749126]
[1644629122979,0.1151,42470.0,42463.0,0.24985407]
[1644629123177,0.0855919,42469.0,42464.0,0.0001]
[1644629123578,0.0855919,42469.0,42464.0,0.058998]
[1644629123778,0.0855919,42469.0,42465.0,0.0001]
[1644629123981,0.08591756,42469.0,42465.0,0.0001]
[1644629124379,0.08591756,42469.0,42464.0,0.0001]
[1644629124782,0.08591756,42469.0,42462.0,0.0001]
[1644629125022,0.0855919,42469.0,42462.0,0.0001]
[1644629125222,0.08611679,42469.0,42462.0,0.0001]
[1644629125427,0.00052489,42469.0,42462.0,0.3001]
[1644629125627,0.00052489,42469.0,42463.0,0.577298]
[1644629125926,0.24278306,42481.0,42467.0,0.117776]
[1644629126226,0.24278306,42481.0,42468.0,0.0474]
[1644629126227,0.11952489,42481.0,42468.0,0.0474]
[1644629126424,0.0638713,42470.0,42468.0,0.0474]
[1644629127328,0.0638713,42470.0,42468.0,0.0001]
[1644629127724,0.0638713,42470.0,42463.0,0.0474]
[1644629127924,0.0638713,42470.0,42463.0,0.056816]
[1644629128128,0.0638713,42470.0,42464.0,0.0001]
[1644629128975,0.0638713,42470.0,42463.0,0.0474]
[1644629129981,0.0638713,42470.0,42463.0,0.0001]
[1644629131076,0.0638713,42470.0,42461.0,0.0001]
[1644629132280,0.25116126,42465.0,42461.0,0.0001]
[1644629132546,0.27308329,42464.0,42461.0,0.0001]
[1644629132737,0.34271112,42464.0,42456.0,0.00194917]
[1644629133141,0.44271112,42464.0,42456.0,0.00194917]
[1644629133337,0.18577817,42459.0,42450.0,0.0001]
[1644629133540,0.1366539,42458.0,42454.0,0.00048728]
[1644629134641,0.07184057,42450.0,42446.0,0.01987]
[1644629134841,0.07184057,42450.0,42448.0,0.00194928]
[1644629135044,0.07184057,42450.0,42448.0,0.00204928]
[1644629135841,0.07184057,42450.0,42448.0,0.0001]
[1644629136678,0.07184057,42450.0,42447.0,0.0594173]
[1644629136883,0.07184057,42450.0,42448.0,0.0001]
[1644629148526,0.07184057,42450.0,42447.0,0.00048992]
[1644629148930,0.07184057,42450.0,42445.0,0.0001]
[1644629149128,0.07184057,42450.0,42446.0,0.00048992]
[1644629149729,0.0473,42449.0,42446.0,0.00048992]
[1644629150129,0.0473,42449.0,42440.0,0.0001]
[1644629150331,0.07860478,42443.0,42440.0,1.032e-05]
[1644629150531,0.24168817,42446.0,42444.0,0.15720956]
[1644629154587,0.24158817,42446.0,42444.0,0.15720956]
[1644629155629,0.24158817,42446.0,42445.0,1.032e-05]
[1644629163127,0.24158817,42446.0,42443.0,0.00048993]
[1644629163128,0.7,42445.0,42443.0,0.00048993]
[1644629163427,0.05895605,42442.0,42434.0,0.0002333]
[1644629163629,0.05895605,42442.0,42437.0,0.00196003]
[1644629163630,0.05,42440.0,42437.0,0.00196003]
[1644629163825,0.0473,42439.0,42437.0,0.00196003]
[1644629164027,0.23567935,42438.0,42437.0,0.00196003]
[1644629164224,0.56953373,42438.0,42437.0,0.00196003]
[1644629164426,0.66953373,42438.0,42437.0,0.00196003]
[1644629164626,0.66953373,42438.0,42433.0,0.0002333]
[1644629164827,0.66953373,42438.0,42435.0,0.00048996]
[1644629165828,0.66953373,42438.0,42433.0,0.0002333]
[1644629166028,0.66953373,42438.0,42434.0,0.00048997]
[1644629166893,0.66953373,42438.0,42433.0,0.0002333]
[1644629167193,0.66953373,42438.0,42434.0,0.00048997]
[1644629168200,0.66953373,42438.0,42433.0,0.0002333]
[1644629168394,0.66953373,42438.0,42432.0,0.03]
[1644629168395,0.72849473,42438.0,42432.0,0.0302333]
[1644629168696,0.77849473,42438.0,42432.0,0.0302333]
[1644629170034,0.5076018,42438.0,42432.0,0.0302333]
[1644629171035,0.77535923,42438.0,42432.0,0.0302333]
[1644629172034,0.77535923,42438.0,42433.0,0.00052468]
[1644629172235,0.77535923,42438.0,42433.0,0.00075798]
[1644629172836,0.83432023,42438.0,42433.0,0.00075798]
[1644629173036,0.83432023,42438.0,42433.0,0.0002333]
[1644629173237,0.83432023,42438.0,42433.0,0.00052467]
[1644629173437,0.83432023,42438.0,42433.0,0.00075797]
[1644629174383,0.77535923,42438.0,42433.0,0.00075797]
[1644629175378,0.77535923,42438.0,42433.0,0.0002333]
[1644629175578,0.77535923,42438.0,42433.0,0.00052467]
[1644629175781,0.77535923,42438.0,42433.0,0.00075797]
[1644629176578,0.77535923,42438.0,42433.0,0.0002333]
[1644629176778,0.77535923,42438.0,42433.0,0.00052467]
[1644629176981,0.77535923,42438.0,42433.0,0.00075797]
[1644629177826,0.77535923,42438.0,42433.0,0.0002333]
[1644629178027,0.77535923,42438.0,42433.0,0.00052467]
[1644629178225,0.77535923,42438.0,42433.0,0.00075797]
[1644629178926,0.77535923,42438.0,42433.0,0.0002333]
[1644629179127,0.77535923,42438.0,42433.0,0.00052467]
[1644629179326,0.77535923,42438.0,42433.0,0.00075797]
[1644629179833,0.5919,42434.0,42427.0,0.00219901]
[1644629180132,0.9919,42434.0,42433.0,0.00023443]
[1644629180332,0.25422326,42428.0,42427.0,0.00023443]
[1644629180532,0.29562839,42427.0,42422.0,0.00023443]
[1644629180832,0.34292839,42427.0,42422.0,0.00023443]
[1644629181031,0.62045138,42427.0,42422.0,0.00023443]
[1644629182280,0.72045138,42427.0,42422.0,0.00023443]
[1644629184080,0.44292839,42427.0,42424.0,0.00052472]
[1644629184282,0.12067357,42427.0,42425.0,0.00023443]
[1644629185427,0.12067357,42427.0,42426.0,0.0125]
[1644629188434,0.07337357,42427.0,42426.0,0.0125]
[1644629189589,0.1202,42432.0,42428.0,0.14674713]
[1644629189792,0.06610923,42433.0,42429.0,0.0001]
[1644629190189,0.06610923,42433.0,42429.0,0.00033443]
[1644629190389,0.06610923,42433.0,42429.0,0.0001]
[1644629190689,0.06610923,42433.0,42429.0,0.00033443]
[1644629190888,0.06610923,42433.0,42429.0,0.0001]
[1644629191191,0.06480923,42433.0,42429.0,0.00085912]
[1644629191388,0.06480923,42433.0,42429.0,0.00062469]
[1644629191590,0.06480923,42433.0,42429.0,0.00085912]
[1644629191789,0.06480923,42433.0,42429.0,0.05981012]
[1644629191990,0.06480923,42433.0,42430.0,0.0001]
[1644629192191,0.06480923,42433.0,42430.0,0.00033443]
[1644629192394,0.06480923,42433.0,42430.0,0.0001]
[1644629192629,0.06480923,42433.0,42430.0,0.00033443]
[1644629193434,0.5436,42436.0,42432.0,0.26153181]
[1644629193631,0.1213,42440.0,42433.0,0.059047]
[1644629193831,0.364,42444.0,42434.0,0.0001]
[1644629194431,0.06662994,42443.0,42437.0,0.25707238]
[1644629194632,0.06662994,42443.0,42438.0,0.0001]
[1644629194833,0.06662994,42443.0,42434.0,0.117878]
[1644629195036,0.06662994,42443.0,42435.0,0.0001]
[1644629195935,0.06662994,42443.0,42435.0,0.18911324]
[1644629196290,0.06662994,42443.0,42437.0,0.05894]
[1644629196481,0.06662994,42443.0,42438.0,0.0001]
[1644629197381,0.0665645,42443.0,42438.0,0.0001]
[1644629204082,0.0665645,42443.0,42439.0,0.20979218]
[1644629204283,0.0665645,42443.0,42440.0,0.0001]
[1644629204780,0.1185,42448.0,42440.0,0.0001]
[1644629205779,0.1185,42448.0,42438.0,0.0001]
[1644629207183,0.08056674,42442.0,42438.0,0.0001]
[1644629211785,0.08056674,42442.0,42435.0,0.0001]
[1644629215735,0.08056674,42442.0,42436.0,0.058938]
[1644629215936,0.08056674,42442.0,42437.0,0.0001]
[1644629218882,0.26380603,42444.0,42437.0,0.0001]
[1644629219083,0.19379008,42445.0,42437.0,0.0001]
[1644629219282,0.29315324,42447.0,42437.0,0.0001]
[1644629220083,0.29315324,42447.0,42439.0,0.19944678]
[1644629220284,0.0855052,42444.0,42440.0,0.0001]
[1644629221686,0.0855052,42444.0,42440.0,1.446e-05]
[1644629222185,0.52593937,42448.0,42440.0,1.446e-05]
[1644629222833,0.1185,42448.0,42440.0,1.446e-05]
[1644629223635,0.1185,42448.0,42446.0,0.21876967]
[1644629223834,0.08323952,42450.0,42446.0,0.27769367]
[1644629225136,0.00052494,42453.0,42446.0,0.27769367]
[1644629225838,0.55983662,42457.0,42446.0,0.27769367]
[1644629226036,0.00032743,42453.0,42446.0,0.27769367]
[1644629226288,0.00032743,42453.0,42447.0,0.0473]
[1644629226885,0.00032743,42453.0,42447.0,0.04731446]
[1644629227086,0.4174,42457.0,42447.0,0.04731446]
[1644629227287,0.00032743,42453.0,42447.0,0.04731446]
[1644629227486,0.06519345,42451.0,42447.0,0.04731446]
[1644629227889,0.00032743,42453.0,42447.0,0.10623346]
[1644629228088,0.00032743,42453.0,42449.0,0.117832]
[1644629228288,0.63396357,42462.0,42449.0,0.117832]
[1644629228289,0.69464045,42461.0,42452.0,0.058918]
[1644629228493,0.5523,42461.0,42453.0,1.446e-05]
[1644629229487,0.08274572,42460.0,42453.0,1.446e-05]
[1644629229689,0.00052716,42459.0,42453.0,1.446e-05]
[1644629230331,0.3511073,42459.0,42453.0,1.446e-05]
[1644629230531,0.22021236,42457.0,42453.0,1.446e-05]
[1644629230934,0.22021236,42457.0,42450.0,1.446e-05]
[1644629231140,0.5707925,42457.0,42450.0,1.446e-05]
[1644629231537,0.35058014,42456.0,42450.0,1.446e-05]
[1644629231737,0.35058014,42453.0,42446.0,1.446e-05]
[1644629231934,0.3080827,42452.0,42443.0,1.446e-05]
[1644629232135,0.21759612,42448.0,42439.0,1.446e-05]
[1644629232336,0.48489227,42448.0,42439.0,1.446e-05]
[1644629232535,0.48126986,42448.0,42439.0,1.446e-05]
[1644629232734,0.08021525,42447.0,42438.0,0.33973262]
[1644629232935,0.7,42446.0,42438.0,0.33973262]
[1644629233136,0.08021525,42447.0,42438.0,0.33973262]
[1644629234195,0.08091507,42439.0,42438.0,0.33973262]
[1644629234397,0.48126986,42448.0,42441.0,0.16183014]
[1644629234596,0.06975292,42447.0,42441.0,0.16183014]
[1644629235397,0.35058014,42446.0,42441.0,0.16183014]
[1644629235598,0.33298826,42445.0,42441.0,0.16183014]
[1644629237935,0.33298826,42445.0,42442.0,0.0001]
[1644629243188,0.06975292,42447.0,42442.0,0.0001]
[1644629248146,0.05,42444.0,42442.0,0.0001]
[1644629248338,0.0473,42443.0,42442.0,0.0001]
[1644629248539,0.1473,42443.0,42442.0,0.0001]
[1644629248792,0.7,42442.0,42429.0,0.00023443]
[1644629248987,0.7,42442.0,42428.0,0.14674713]
[1644629248988,0.22291814,42430.0,42428.0,0.14674713]
[1644629249190,0.1127525,42431.0,42428.0,0.14674713]
[1644629250989,0.26789263,42430.0,42428.0,0.14674713]
[1644629251988,0.1127525,42431.0,42428.0,0.14674713]
[1644629252189,0.1127525,42431.0,42428.0,0.14698156]
[1644629253938,0.1127525,42431.0,42429.0,0.0001]
[1644629255441,0.49127858,42430.0,42429.0,0.0001]
[1644629255640,0.21839446,42430.0,42429.0,0.0001]
[1644629256285,0.1127525,42431.0,42429.0,0.0001]
[1644629256489,0.1127525,42431.0,42429.0,0.20808532]
[1644629256686,0.1127525,42431.0,42430.0,0.0001]
[1644629257088,0.0473,42431.0,42430.0,0.0001]
[1644629257490,0.44387563,42437.0,42430.0,0.0001]
[1644629257689,0.49387563,42437.0,42430.0,0.00033443]
[1644629257894,0.49387563,42437.0,42430.0,0.0001]
[1644629257895,0.54387563,42437.0,42430.0,0.0001]
[1644629258088,0.54387563,42437.0,42430.0,0.00033443]
[1644629258288,0.54387563,42437.0,42430.0,0.0001]
[1644629258488,0.54387563,42437.0,42431.0,0.00052644]
[1644629258887,0.54387563,42437.0,42431.0,0.00076087]
[1644629259189,0.54387563,42437.0,42431.0,0.00052644]
[1644629259591,0.54387563,42437.0,42430.0,0.00033443]
[1644629259793,0.54379257,42437.0,42431.0,0.00052644]
[1644629260244,0.44387563,42437.0,42431.0,0.00052644]
[1644629260441,0.1,42437.0,42431.0,0.00052644]
[1644629260641,0.1,42437.0,42430.0,0.00033443]
[1644629260843,0.121,42440.0,42431.0,0.00052644]
[1644629261240,0.221,42440.0,42431.0,0.00052644]
[1644629261640,0.08495869,42433.0,42431.0,0.00052644]
[1644629261841,0.08495869,42433.0,42430.0,0.00033443]
[1644629262043,0.08495869,42433.0,42430.0,0.00086087]
[1644629262240,0.31522108,42438.0,42430.0,0.00086087]
[1644629262439,0.221,42440.0,42430.0,0.00086087]
[1644629263040,0.221,42440.0,42430.0,0.00033443]
[1644629263041,0.216,42440.0,42430.0,0.00033443]
[1644629263240,0.216,42440.0,42431.0,0.00052645]
[1644629263441,0.54034713,42439.0,42431.0,0.00052645]
[1644629263645,0.54029949,42439.0,42431.0,0.00052645]
[1644629263886,0.64029949,42439.0,42431.0,0.00052645]
[1644629264085,0.07206047,42433.0,42431.0,0.00052645]
[1644629264288,0.07206047,42433.0,42430.0,0.00033443]
[1644629264587,0.07206047,42433.0,42431.0,0.00052645]
[1644629265587,0.07206047,42433.0,42430.0,0.00033443]
[1644629265786,0.07206047,42433.0,42430.0,0.00086087]
[1644629266686,0.07206047,42433.0,42430.0,0.00033443]
[1644629269940,0.07206047,42433.0,42430.0,0.0001]
[1644629270138,0.07206047,42433.0,42430.0,0.00033377]
[1644629270341,0.07206047,42433.0,42430.0,0.0001]
[1644629270539,0.07206047,42433.0,42430.0,0.00033377]
[1644629270741,0.07206047,42433.0,42429.0,0.20331909]
[1644629271402,0.07206047,42433.0,42429.0,0.00023377]
[1644629271601,0.07206047,42433.0,42428.0,0.14674713]
[1644629271800,0.07206047,42433.0,42429.0,0.0005265]
[1644629272011,0.07206047,42433.0,42429.0,0.00076027]
[1644629272701,0.07206047,42433.0,42429.0,0.00023377]
[1644629272900,0.07206047,42433.0,42429.0,0.0005265]
[1644629273200,0.07206047,42433.0,42429.0,0.00076027]
[1644629273905,0.07206047,42433.0,42429.0,0.00023377]
[1644629274102,0.07206047,42433.0,42429.0,0.0005265]
[1644629274305,0.07206047,42433.0,42429.0,0.00076027]
[1644629274603,0.07206047,42433.0,42428.0,0.0249914]
[1644629276538,0.07258691,42433.0,42428.0,0.0249914]
[1644629278643,0.07206047,42433.0,42428.0,0.0249914]
[1644629278890,0.07258691,42433.0,42428.0,0.0249914]
[1644629279894,0.07206047,42433.0,42428.0,0.0249914]
[1644629280291,0.07258691,42433.0,42428.0,0.0249914]
[1644629281091,0.07206047,42433.0,42428.0,0.0249914]
[1644629281291,0.07254914,42433.0,42428.0,0.0249914]
[1644629282293,0.07206047,42433.0,42428.0,0.0249914]
[1644629282539,0.07254914,42433.0,42428.0,0.0249914]
[1644629283541,0.07206047,42433.0,42428.0,0.0249914]
[1644629283843,0.07254914,42433.0,42428.0,0.0249914]
[1644629284642,0.07206047,42433.0,42428.0,0.0249914]
[1644629285045,0.07254914,42433.0,42428.0,0.0249914]
[1644629285942,0.07206047,42433.0,42428.0,0.0249914]
[1644629286142,0.07255207,42433.0,42428.0,0.0249914]
[1644629287187,0.07206047,42433.0,42428.0,0.0249914]
[1644629287388,0.07255207,42433.0,42428.0,0.0249914]
[1644629288388,0.07206047,42433.0,42428.0,0.0249914]
[1644629288589,0.07255207,42433.0,42428.0,0.0249914]
[1644629289590,0.07206047,42433.0,42428.0,0.0249914]
[1644629289788,0.07255164,42433.0,42428.0,0.0249914]
[1644629290247,0.07255164,42433.0,42428.0,0.02522442]
[1644629290646,0.07206047,42433.0,42428.0,0.02522442]
[1644629290847,0.07206047,42433.0,42428.0,0.0249914]
[1644629291047,0.07255164,42433.0,42428.0,0.02522442]
[1644629291447,0.42348742,42433.0,42428.0,0.02522442]
[1644629291847,0.42299625,42433.0,42428.0,0.02522442]
[1644629292049,0.42299625,42433.0,42428.0,0.0249914]
[1644629292247,0.42348742,42433.0,42428.0,0.02522442]
[1644629292648,0.24326685,42432.0,42428.0,0.02522442]
[1644629293249,0.24326685,42432.0,42428.0,0.0249914]
[1644629293450,0.24326685,42432.0,42428.0,0.02522442]
[1644629294098,0.22529677,42429.0,42428.0,0.02522442]
[1644629294297,0.22529677,42429.0,42428.0,0.0249914]
[1644629296094,0.1,42431.0,42428.0,0.0249914]
[1644629296394,0.29056685,42432.0,42428.0,0.0249914]
[1644629297194,0.29056685,42432.0,42428.0,0.02522442]
[1644629297638,0.29056685,42432.0,42428.0,0.02512539]
[1644629297836,0.25768795,42430.0,42428.0,0.02512539]
[1644629298040,0.25768795,42430.0,42428.0,0.02489237]
[1644629305440,0.34326685,42432.0,42428.0,0.02489237]
[1644629305641,0.24326685,42432.0,42428.0,0.02512539]
[1644629306443,0.26092244,42431.0,42428.0,0.02489237]
[1644629306641,0.26092244,42431.0,42428.0,0.02512539]
[1644629307443,0.53004008,42431.0,42428.0,0.02512539]
[1644629307642,0.53004008,42431.0,42428.0,0.02489237]
[1644629307844,0.63004008,42431.0,42428.0,0.02512539]
[1644629308894,0.78347794,42431.0,42428.0,0.02489237]
[1644629309093,0.63004008,42431.0,42428.0,0.02489237]
[1644629309494,0.26092244,42431.0,42428.0,0.02489237]
[1644629310397,0.13135007,42433.0,42428.0,0.02489237]
[1644629310599,0.0003256,42433.0,42428.0,0.02489237]
[1644629310802,0.0003256,42433.0,42429.0,0.376696]
[1644629311010,0.55124613,42442.0,42433.0,0.00065119]
[1644629311011,0.15343786,42441.0,42433.0,0.00065119]
[1644629311200,0.52493786,42442.0,42433.0,0.00065119]
[1644629311398,0.3715,42442.0,42437.0,0.2017388]
[1644629311602,0.39075344,42443.0,42438.0,0.0001]
[1644629311798,0.22958186,42442.0,42433.0,0.00065119]
[1644629312002,0.126144,42442.0,42433.0,0.00065119]
[1644629313245,0.126144,42442.0,42433.0,0.00075119]
[1644629313844,0.00032561,42440.0,42433.0,0.00075119]
[1644629314047,0.00032561,42440.0,42434.0,0.28883527]
[1644629314348,0.00032561,42440.0,42435.0,0.0001]
[1644629314844,0.176144,42442.0,42435.0,0.0001]
[1644629315044,0.000526,42440.0,42435.0,0.0001]
[1644629315345,0.000526,42440.0,42433.0,0.00075119]
[1644629315944,0.076144,42442.0,42433.0,0.00075119]
[1644629316144,0.000526,42439.0,42433.0,0.00075119]
[1644629316392,0.000526,42439.0,42433.0,0.00065119]
[1644629317189,0.24967416,42441.0,42433.0,0.00065119]
[1644629317389,0.000526,42438.0,42433.0,0.00065119]
[1644629318491,0.06421692,42434.0,42433.0,0.00065119]
[1644629318690,0.06421692,42434.0,42433.0,0.03570909]
[1644629319491,0.06421692,42434.0,42433.0,0.00065119]
[1644629322139,0.00052602,42436.0,42433.0,0.00065119]
[1644629322340,0.00052602,42436.0,42433.0,0.03531401]
[1644629322543,0.00052602,42436.0,42435.0,0.058936]
[1644629322740,0.00052602,42436.0,42435.0,0.0001]
[1644629322940,0.00052602,42436.0,42433.0,0.00065119]
[1644629323142,0.372,42446.0,42433.0,0.00065119]
[1644629323341,0.0786394,42438.0,42437.0,0.23156388]
[1644629323543,0.0786394,42438.0,42437.0,0.23166388]
[1644629323986,0.00052601,42438.0,42437.0,0.23166388]
[1644629324386,0.26793786,42447.0,42437.0,0.27896388]
[1644629324587,0.000526,42440.0,42438.0,0.0001]
[1644629324786,0.000526,42440.0,42439.0,0.0473]
[1644629324986,0.000526,42440.0,42439.0,0.0474]
[1644629325588,0.35087531,42446.0,42439.0,0.0474]
[1644629325787,0.06939157,42442.0,42439.0,0.0474]
[1644629326088,0.06939157,42442.0,42439.0,0.106328]
[1644629326287,0.06939157,42442.0,42440.0,0.0001]
[1644629326689,0.1145,42447.0,42440.0,0.0001]
[1644629326888,0.1145,42447.0,42440.0,0.25497098]
[1644629327087,0.00052598,42443.0,42441.0,0.0001]
[1644629327937,0.07920279,42444.0,42441.0,0.0001]
[1644629328136,0.07972877,42444.0,42441.0,0.0001]
[1644629329240,0.07920279,42444.0,42440.0,0.0001]
[1644629330741,0.07972877,42444.0,42440.0,0.0001]
[1644629331591,0.07920279,42444.0,42440.0,0.0001]
[1644629331796,0.07972877,42444.0,42440.0,0.0001]
[1644629332591,0.07972877,42444.0,42440.0,3.132e-05]
[1644629332891,0.07920279,42444.0,42440.0,3.132e-05]
[1644629333191,0.00052598,42444.0,42440.0,3.132e-05]
[1644629333593,0.54822614,42448.0,42440.0,3.132e-05]
[1644629334396,0.08698823,42447.0,42440.0,3.132e-05]
[1644629334795,0.54822614,42448.0,42440.0,3.132e-05]
[1644629335244,0.1208,42450.0,42440.0,3.132e-05]
[1644629335444,0.1208,42450.0,42445.0,0.26968717]
[1644629335644,0.35087531,42454.0,42445.0,0.26968717]
[1644629335845,0.07818262,42452.0,42445.0,0.41518855]
[1644629336045,0.07818262,42452.0,42446.0,0.29621257]
[1644629336647,0.00032523,42451.0,42446.0,0.29621257]
[1644629336847,0.00032523,42451.0,42445.0,0.32861017]
[1644629337650,0.07818262,42452.0,42445.0,0.32861017]
[1644629337849,0.07818262,42452.0,42446.0,3.132e-05]
[1644629337850,0.00052621,42450.0,42446.0,3.132e-05]
[1644629338051,0.00052621,42450.0,42446.0,0.30269444]
[1644629338252,0.00052621,42450.0,42447.0,3.132e-05]
[1644629338895,0.07818262,42452.0,42447.0,3.132e-05]
[1644629339194,0.00052621,42451.0,42447.0,3.132e-05]
[1644629339695,0.00052621,42451.0,42446.0,3.132e-05]
[1644629339895,0.07818262,42452.0,42446.0,3.132e-05]
[1644629340294,0.00052621,42451.0,42446.0,3.132e-05]
[1644629340493,0.00052621,42451.0,42445.0,0.26805949]
[1644629341095,0.07818262,42452.0,42445.0,0.26805949]
[1644629341495,0.00052621,42450.0,42445.0,0.26805949]
[1644629342201,0.00052621,42450.0,42446.0,0.28614483]
[1644629342395,0.07818262,42452.0,42446.0,0.28614483]
[1644629342639,0.00052621,42450.0,42446.0,0.28614483]
[1644629343639,0.07818262,42452.0,42444.0,0.0473]
[1644629343842,0.00032542,42450.0,42444.0,0.0473]
[1644629344847,0.58979646,42452.0,42444.0,0.0473]
[1644629345044,0.00032542,42449.0,42444.0,0.0473]
[1644629345243,0.00032542,42449.0,42440.0,0.24310098]
[1644629345444,0.08985907,42441.0,42440.0,0.24310098]
[1644629345647,0.07726386,42443.0,42442.0,0.17971814]
[1644629345845,0.07726386,42443.0,42442.0,0.17981814]
[1644629346689,0.00052666,42446.0,42442.0,0.17981814]
[1644629346889,0.00052666,42446.0,42443.0,0.0001]
[1644629347089,0.41917043,42451.0,42443.0,0.19053195]
[1644629347290,0.41917043,42451.0,42444.0,0.0001]
[1644629347493,0.00052667,42447.0,42444.0,0.0001]
[1644629347691,0.08764494,42445.0,42444.0,0.0001]
[1644629348491,0.08764494,42445.0,42443.0,0.0001]
[1644629349092,0.00052667,42447.0,42443.0,0.059028]
[1644629349293,0.00052667,42447.0,42444.0,0.0001]
[1644629349491,0.1187,42451.0,42444.0,0.28585949]
[1644629349692,0.30047043,42453.0,42445.0,0.0001]
[1644629349693,0.40047043,42453.0,42445.0,0.0001]
[1644629349892,0.00052667,42448.0,42445.0,0.0001]
[1644629350142,0.00052667,42448.0,42444.0,0.0001]
[1644629350340,0.00052667,42448.0,42446.0,0.21652075]
[1644629350541,0.08692439,42448.0,42447.0,0.0001]
[1644629350741,0.08639772,42448.0,42447.0,0.0001]
[1644629356693,0.08639772,42448.0,42444.0,0.0001]
[1644629356994,0.08639772,42448.0,42443.0,0.0001]
[1644629358250,0.08692439,42448.0,42443.0,0.0001]
[1644629359249,0.08639772,42448.0,42443.0,0.0001]
[1644629359450,0.08692439,42448.0,42443.0,0.0001]
[1644629360051,0.08692439,42448.0,42443.0,0.059028]
[1644629360251,0.08692439,42448.0,42444.0,0.0001]
[1644629360555,0.08639772,42448.0,42444.0,0.0001]
[1644629360751,0.08692439,42448.0,42447.0,0.19502903]
[1644629360950,0.08692439,42448.0,42447.0,0.17562613]
[1644629361591,0.08639772,42448.0,42447.0,0.17562613]
[1644629361890,0.08639772,42448.0,42447.0,0.0001]
[1644629362093,0.08639772,42448.0,42443.0,0.0001]
[1644629363093,0.08692439,42448.0,42443.0,0.0001]
[1644629364093,0.38686815,42448.0,42443.0,0.0001]
[1644629364292,0.38739482,42448.0,42443.0,0.0001]
[1644629364896,0.30047043,42446.0,42443.0,0.0001]
[1644629367757,0.30047043,42445.0,42443.0,0.0001]
[1644629368824,0.30047043,42445.0,42444.0,0.20866954]
[1644629369015,0.30047043,42445.0,42444.0,0.20876954]
[1644629370620,0.30047043,42445.0,42444.0,0.0001]
[1644629370818,0.30047043,42445.0,42443.0,0.0001]
[1644629371621,0.30047043,42445.0,42443.0,0.059027]
[1644629371820,0.30047043,42445.0,42444.0,0.0001]
[1644629372021,0.30047043,42445.0,42444.0,0.26078749]
[1644629372646,0.30047043,42446.0,42444.0,0.37862449]
[1644629372846,0.00052667,42447.0,42445.0,0.0001]
[1644629373656,0.30047043,42450.0,42445.0,0.059018]
[1644629373849,0.00052666,42448.0,42446.0,0.0001]
[1644629374651,0.00052666,42448.0,42445.0,0.0001]
[1644629374856,0.30047043,42450.0,42445.0,0.0001]
[1644629375053,0.00052666,42449.0,42445.0,0.0001]
[1644629375254,0.30047043,42448.0,42445.0,0.0001]
[1644629375453,0.30047043,42448.0,42443.0,0.0001]
[1644629375854,0.30047043,42447.0,42443.0,0.0001]
[1644629376054,0.00052666,42449.0,42443.0,0.0001]
[1644629376055,0.30047043,42446.0,42443.0,0.0001]
[1644629376690,0.08625839,42445.0,42443.0,0.0001]
[1644629377492,0.08625839,42445.0,42443.0,0.059027]
[1644629377691,0.08625839,42445.0,42444.0,0.0001]
[1644629378093,0.08625839,42445.0,42443.0,0.0001]
[1644629383903,0.08625839,42445.0,42443.0,3.489e-05]
[1644629384208,0.08125839,42445.0,42443.0,3.489e-05]
[1644629384604,0.43180722,42445.0,42443.0,3.489e-05]
[1644629384807,0.28632232,42444.0,42443.0,3.489e-05]
[1644629385405,0.63687115,42444.0,42443.0,3.489e-05]
[1644629386003,0.35054883,42444.0,42443.0,3.489e-05]
[1644629386403,0.54764256,42444.0,42443.0,3.489e-05]
[1644629386605,0.7,42443.0,42442.0,0.17971814]
[1644629386809,0.92561941,42443.0,42442.0,0.17971814]
[1644629387004,1.11032864,42443.0,42442.0,0.17971814]
[1644629387647,1.16928164,42443.0,42442.0,0.17971814]
[1644629388146,0.41032864,42443.0,42442.0,0.17971814]
[1644629388548,0.54819134,42443.0,42442.0,0.17971814]
[1644629388745,0.34013967,42443.0,42442.0,0.17971814]
[1644629390746,0.59814896,42443.0,42442.0,0.17971814]
[1644629391901,0.59814896,42443.0,42442.0,0.17981814]
[1644629395846,0.49814896,42443.0,42442.0,0.17981814]
[1644629396047,0.39814896,42443.0,42442.0,0.17981814]